bitfinex/quotes_BTCUSD_20250615
["timestamp","ask_amount","ask_price","bid_price","bid_amount"]
[1750020763804,0.23702324,105010.0,105000.0,0.36715713]
[1750020764565,0.22750043,105010.0,105000.0,0.16051713]
[1750020764775,0.20880043,105010.0,105000.0,0.36715713]
[1750020764985,0.20880043,105010.0,105000.0,0.91226706]
[1750020765393,0.20880043,105010.0,105000.0,0.87424568]
[1750020765602,0.19060043,105010.0,105000.0,0.87424568]
[1750020765805,0.19060043,105010.0,105000.0,0.71192568]
[1750020766012,0.19060043,105010.0,105000.0,0.91225001]
[1750020766444,0.19060043,105010.0,105000.0,0.36714008]
[1750020766650,0.19040996,105010.0,105000.0,0.36714008]
[1750020767692,0.19040996,105010.0,105000.0,0.16062008]
[1750020767901,0.20830996,105010.0,105000.0,0.36710008]
[1750020768118,0.19040996,105010.0,105000.0,0.36710008]
[1750020768979,0.19993268,105010.0,105000.0,0.36710008]
[1750020770743,0.18080268,105010.0,105000.0,0.30406801]
[1750020770948,0.18080268,105010.0,105000.0,0.85217794]
[1750020770949,0.19032512,105010.0,105000.0,0.85217794]
[1750020771146,0.02856806,105010.0,105000.0,1.00395343]
[1750020771365,0.01904516,105010.0,105000.0,1.00595343]
[1750020771680,0.20950321,105010.0,105000.0,1.00587343]
[1750020771883,0.20950321,105010.0,105000.0,1.00387343]
[1750020772109,0.20950321,105010.0,105000.0,0.94984136]
[1750020772313,0.20950321,105010.0,105000.0,1.00687343]
[1750020772519,0.20950321,105010.0,105000.0,0.95784136]
[1750020772935,0.20950321,105010.0,105000.0,0.86309794]
[1750020773560,0.20950321,105010.0,105000.0,0.92013001]
[1750020773768,0.01904516,105010.0,105000.0,0.92013001]
[1750020773974,0.02856806,105010.0,105000.0,0.92013001]
[1750020774424,0.21902611,105010.0,105000.0,0.90613001]
[1750020774642,0.21902611,105010.0,105000.0,0.90313001]
[1750020774872,0.21902611,105010.0,105000.0,0.90513001]
[1750020775303,0.21902611,105010.0,105000.0,0.90313001]
[1750020775715,0.21902611,105010.0,105000.0,0.93013001]
[1750020775924,0.21902611,105010.0,105000.0,1.02627923]
[1750020776325,0.21902611,105010.0,105000.0,1.00727923]
[1750020776533,0.21902611,105010.0,105000.0,0.91113001]
[1750020778400,0.21902611,105010.0,105000.0,0.70473001]
[1750020778601,0.21902611,105010.0,105000.0,0.91113001]
[1750020778808,0.01904516,105010.0,105000.0,0.91113001]
[1750020779028,0.02856724,105010.0,105000.0,0.91113001]
[1750020779287,0.20948344,105020.0,105010.0,0.03365085]
[1750020779499,0.21900543,105020.0,105010.0,0.66833618]
[1750020779713,0.01904281,105020.0,105010.0,0.70543618]
[1750020779934,0.00952117,105020.0,105010.0,0.73385572]
[1750020780156,0.00952117,105020.0,105010.0,0.69570568]
[1750020780377,0.01904135,105030.0,105020.0,0.05621]
[1750020780596,0.20960276,105040.0,105030.0,0.03365085]
[1750020780821,0.02863997,105040.0,105030.0,0.68403865]
[1750020781037,0.02863942,105040.0,105030.0,0.77817072]
[1750020781516,0.19051815,105050.0,105040.0,0.05164085]
[1750020781517,0.00951873,105050.0,105040.0,0.05164085]
[1750020781737,0.03821744,105050.0,105040.0,0.92373891]
[1750020781954,0.22860351,105050.0,105040.0,0.18798956]
[1750020782165,0.01918007,105050.0,105040.0,0.31893291]
[1750020782386,0.01918007,105050.0,105040.0,0.86404284]
[1750020782607,0.02869925,105050.0,105040.0,0.86404284]
[1750020782821,0.03821852,105050.0,105040.0,0.89257955]
[1750020783273,0.02869925,105050.0,105040.0,0.89257955]
[1750020783510,0.02869925,105050.0,105040.0,0.34746962]
[1750020783511,0.21908478,105050.0,105040.0,0.34746962]
[1750020783949,0.02869925,105050.0,105040.0,0.34746962]
[1750020784157,0.02869925,105050.0,105040.0,0.44361884]
[1750020784158,0.01918007,105050.0,105040.0,0.44361884]
[1750020784417,0.02869871,105050.0,105040.0,0.95064954]
[1750020784631,0.02869862,105050.0,105040.0,0.95064954]
[1750020785060,0.02869862,105050.0,105040.0,0.98872877]
[1750020785271,0.0096608,105050.0,105040.0,0.98872877]
[1750020785494,0.02869862,105050.0,105040.0,0.98872877]
[1750020785740,0.01917953,105050.0,105040.0,0.98872877]
[1750020785957,0.00014225,105050.0,105040.0,0.98872877]
[1750020786174,0.00014225,105050.0,105040.0,1.11355267]
[1750020786640,0.00014225,105050.0,105040.0,1.6586626]
[1750020787098,0.03806776,105070.0,105050.0,0.35454085]
[1750020787099,0.02855111,105070.0,105050.0,0.35454085]
[1750020787313,0.20938556,105070.0,105060.0,0.27278456]
[1750020787523,0.20938556,105070.0,105060.0,0.2576405]
[1750020787950,0.20938556,105070.0,105060.0,0.22917283]
[1750020788236,0.01903483,105070.0,105060.0,0.22917283]
[1750020788515,0.02855121,105070.0,105060.0,0.83925043]
[1750020788812,0.02855121,105070.0,105060.0,0.93448585]
[1750020788813,0.0285513,105070.0,105060.0,0.93448585]
[1750020789105,0.20936382,105080.0,105070.0,0.01454085]
[1750020789366,0.03806512,105080.0,105070.0,0.03735368]
[1750020789893,0.21892768,105080.0,105070.0,0.03735368]
[1750020790552,0.2093115,105080.0,105070.0,0.03735368]
[1750020791015,0.2093115,105080.0,105070.0,0.08724581]
[1750020791223,0.2093115,105080.0,105070.0,0.24347368]
[1750020792053,0.2093115,105080.0,105070.0,0.03735368]
[1750020792256,0.2093115,105080.0,105070.0,0.24347368]
[1750020792673,0.2093115,105080.0,105070.0,0.24343368]
[1750020793527,0.2093115,105080.0,105070.0,0.03735368]
[1750020793737,0.2093115,105080.0,105070.0,0.24343368]
[1750020795650,0.19979504,105080.0,105070.0,0.24343368]
[1750020797509,0.19979504,105080.0,105070.0,0.03735368]
[1750020797721,0.19979504,105080.0,105070.0,0.24343368]
[1750020797928,0.19979504,105080.0,105070.0,0.30818782]
[1750020798143,0.20931141,105080.0,105070.0,0.30818782]
[1750020798360,0.19989494,105080.0,105070.0,0.30818782]
[1750020798570,0.19989494,105080.0,105070.0,0.32748782]
[1750020798782,0.00951637,105080.0,105070.0,0.32748782]
[1750020798998,0.19984754,105080.0,105070.0,0.34508782]
[1750020799209,0.01903247,105080.0,105070.0,0.34508782]
[1750020799423,0.21888019,105080.0,105070.0,0.34508782]
[1750020800724,0.20936409,105080.0,105070.0,0.28033368]
[1750020801208,0.20936409,105080.0,105070.0,0.26103368]
[1750020801454,0.19984772,105080.0,105070.0,0.26103368]
[1750020802782,0.19984772,105080.0,105070.0,0.23822085]
[1750020803001,0.19984772,105080.0,105070.0,0.22054085]
[1750020803212,0.19984772,105080.0,105070.0,0.24324925]
[1750020803344,0.19984772,105080.0,105070.0,0.03724925]
[1750020803555,0.19033117,105080.0,105070.0,0.24324925]
[1750020803769,0.7354411,105080.0,105070.0,0.22054085]
[1750020803969,0.7536411,105080.0,105070.0,0.01454085]
[1750020804179,0.22703117,105080.0,105070.0,0.22054085]
[1750020804376,0.00951737,105070.0,105050.0,0.36448749]
[1750020804581,1.1216956,105060.0,105050.0,0.02840218]
[1750020804835,1.12715917,105060.0,105050.0,0.02840218]
[1750020805309,1.41269251,105060.0,105050.0,0.02840218]
[1750020805509,0.24704337,105040.0,105030.0,0.206]
[1750020805756,0.79761687,105040.0,105030.0,0.206]
[1750020805933,0.02856462,105020.0,105010.0,0.0386]
[1750020806142,0.02856462,105020.0,105010.0,0.06133768]
[1750020806340,0.02856462,105020.0,105010.0,0.08973986]
[1750020806541,0.22852652,105020.0,105010.0,0.26733768]
[1750020806901,0.02856462,105020.0,105010.0,0.06138508]
[1750020807108,0.02856453,105020.0,105010.0,0.07592593]
[1750020807318,0.02856453,105020.0,105010.0,0.28196593]
[1750020807941,0.01904281,105020.0,105010.0,0.92322508]
[1750020808148,0.02856444,105020.0,105010.0,0.92722508]
[1750020808360,0.02856444,105020.0,105010.0,0.96362726]
[1750020808770,0.02856444,105020.0,105010.0,0.93522508]
[1750020808771,0.01904281,105020.0,105010.0,0.93522508]
[1750020808982,0.02356453,105020.0,105010.0,0.96362726]
[1750020809195,0.02356462,105020.0,105010.0,0.96362726]
[1750020809603,0.02356453,105020.0,105010.0,0.96362726]
[1750020809811,0.01404281,105020.0,105010.0,0.96362726]
[1750020810222,0.02356453,105020.0,105010.0,0.96362726]
[1750020810427,0.01404281,105020.0,105010.0,0.96362726]
[1750020811243,0.02356453,105020.0,105010.0,0.96362726]
[1750020811853,0.02356453,105020.0,105010.0,0.72918508]
[1750020812065,0.02356453,105020.0,105010.0,0.77326508]
[1750020812277,0.00452127,105020.0,105010.0,0.93526508]
[1750020812481,0.01404272,105020.0,105010.0,0.96366726]
[1750020812686,0.02356435,105020.0,105010.0,0.96366726]
[1750020812890,0.02868171,105030.0,105020.0,0.01454085]
[1750020813100,0.03820207,105030.0,105020.0,0.62008846]
[1750020813332,0.22862385,105030.0,105020.0,0.62008846]
[1750020813538,0.22862385,105030.0,105020.0,0.05597853]
[1750020813741,0.04772315,105030.0,105020.0,0.05597853]
[1750020813945,0.23814493,105030.0,105020.0,0.07497853]
[1750020814353,0.03820207,105030.0,105020.0,0.62408846]
[1750020814558,0.03820207,105030.0,105020.0,0.87633423]
[1750020814769,0.23814493,105030.0,105020.0,0.87633423]
[1750020815390,0.22862448,105030.0,105020.0,0.29305853]
[1750020815818,0.22862448,105030.0,105020.0,0.31216853]
[1750020816204,0.21910376,105030.0,105020.0,0.31216853]
[1750020817075,0.20958286,105030.0,105020.0,0.13116853]
[1750020817281,0.20958286,105030.0,105020.0,0.27446853]
[1750020819301,0.21910367,105030.0,105020.0,0.27446853]
[1750020819507,0.22862403,105030.0,105020.0,0.27446853]
[1750020819681,0.04772324,105030.0,105020.0,0.27446853]
[1750020819937,0.03820225,105030.0,105020.0,0.36201133]
[1750020820139,0.04772333,105030.0,105020.0,0.36201133]
[1750020820340,0.23814511,105030.0,105020.0,0.27446853]
[1750020820746,0.22862457,105030.0,105020.0,0.27446853]
[1750020821391,0.22862457,105030.0,105020.0,0.27442853]
[1750020821810,0.21910376,105030.0,105020.0,0.27442853]
[1750020822255,0.02868153,105030.0,105020.0,0.27442853]
[1750020822715,0.03820261,105030.0,105020.0,0.32982377]
[1750020822931,0.03820261,105030.0,105020.0,0.27442853]
[1750020823145,0.22862439,105030.0,105020.0,0.27442853]
[1750020824240,0.21910376,105030.0,105020.0,0.27442853]
[1750020824470,0.21910376,105030.0,105020.0,0.11242853]
[1750020824699,0.20958286,105030.0,105020.0,0.27442853]
[1750020825149,0.20958286,105030.0,105020.0,0.26642853]
[1750020825555,0.20958286,105030.0,105020.0,0.27242853]
[1750020825763,0.20958286,105030.0,105020.0,0.26842853]
[1750020825976,0.20958286,105030.0,105020.0,0.27842853]
[1750020826601,0.20958286,105030.0,105020.0,0.27642853]
[1750020826810,0.20958286,105030.0,105020.0,0.27942853]
[1750020827606,0.02868162,105030.0,105020.0,0.95216422]
[1750020827839,0.23814448,105030.0,105020.0,0.95216422]
[1750020828253,0.03820162,105030.0,105020.0,0.95216422]
[1750020828459,0.2381443,105030.0,105020.0,0.9805664]
[1750020828915,0.24766538,105030.0,105020.0,0.7745264]
[1750020829117,0.24766538,105030.0,105020.0,0.9806064]
[1750020829322,0.23814511,105030.0,105020.0,0.9806064]
[1750020829533,0.22862457,105030.0,105020.0,0.9806064]
[1750020830573,0.22862457,105030.0,105020.0,1.01847597]
[1750020830992,0.21910376,105030.0,105020.0,1.01847597]
[1750020831196,0.21910376,105030.0,105020.0,0.47336604]
[1750020831629,0.21910376,105030.0,105020.0,0.46402963]
[1750020832723,0.20958286,105030.0,105020.0,0.37300387]
[1750020832927,0.20958286,105030.0,105020.0,0.35470387]
[1750020833137,0.20958286,105030.0,105020.0,0.37260387]
[1750020834187,0.20958286,105030.0,105020.0,0.35470387]
[1750020834413,0.20006178,105030.0,105020.0,0.35470387]
[1750020834867,0.20006178,105030.0,105020.0,0.39284383]
[1750020836011,0.20006178,105030.0,105020.0,0.37454383]
[1750020837158,0.20958268,105030.0,105020.0,0.50699305]
[1750020837840,0.20958268,105030.0,105020.0,0.46885309]
[1750020838068,0.20958268,105030.0,105020.0,1.01396302]
[1750020838285,0.20958268,105030.0,105020.0,0.99696302]
[1750020838524,0.02868153,105030.0,105020.0,0.99696302]
[1750020838768,0.21910331,105030.0,105020.0,1.00496302]
[1750020839239,0.21910331,105030.0,105020.0,1.00296302]
[1750020839465,0.21910331,105030.0,105020.0,1.00496302]
[1750020840408,0.21910331,105030.0,105020.0,0.99896302]
[1750020840662,0.21910331,105030.0,105020.0,1.00496302]
[1750020841101,0.21910331,105030.0,105020.0,0.36370387]
[1750020841317,0.20958268,105030.0,105020.0,0.36370387]
[1750020842194,0.20006178,105030.0,105020.0,0.36370387]
[1750020842859,0.20006178,105030.0,105020.0,0.9088138]
[1750020843903,0.20006178,105030.0,105020.0,0.7027338]
[1750020844126,0.20006178,105030.0,105020.0,0.36370387]
[1750020844562,0.20006178,105030.0,105020.0,0.32740387]
[1750020844803,0.20006178,105030.0,105020.0,0.3655509]
[1750020845689,0.20006178,105030.0,105020.0,0.32740387]
[1750020847235,0.20006178,105030.0,105020.0,0.34640387]
[1750020847941,0.20006178,105030.0,105020.0,0.38455145]
[1750020848764,0.20006178,105030.0,105020.0,0.40365145]
[1750020849831,0.20006178,105030.0,105020.0,0.36555145]
[1750020851321,0.20006178,105030.0,105020.0,0.15947145]
[1750020851527,0.20006178,105030.0,105020.0,0.36551145]
[1750020852233,0.78247171,105030.0,105020.0,0.1449306]
[1750020852437,0.78247171,105030.0,105020.0,0.29399526]
[1750020853338,0.23736178,105030.0,105020.0,0.15464446]
[1750020853569,0.23736178,105030.0,105020.0,0.31660446]
[1750020853768,0.23736178,105030.0,105020.0,0.32060446]
[1750020853979,0.23736178,105030.0,105020.0,0.31660446]
[1750020854178,0.23736178,105030.0,105020.0,0.31460446]
[1750020854454,0.23736178,105030.0,105020.0,0.31860446]
[1750020854883,0.23736178,105030.0,105020.0,0.32531251]
[1750020855083,0.23736178,105030.0,105020.0,0.32531252]
[1750020855302,1.17594295,105030.0,105020.0,0.05534688]
[1750020855513,1.12247171,105030.0,105020.0,0.02673768]
[1750020855743,1.12247171,105030.0,105020.0,0.03344621]
[1750020855744,0.57736178,105030.0,105020.0,0.03344621]
[1750020855960,1.12247171,105030.0,105020.0,0.03344621]
[1750020856170,0.57736178,105030.0,105020.0,0.02273768]
[1750020856385,0.57736178,105030.0,105020.0,0.02473768]
[1750020856604,0.59227334,105030.0,105020.0,0.03144616]
[1750020856812,0.57347334,105030.0,105020.0,0.02944615]
[1750020857028,0.57347334,105030.0,105020.0,0.02473768]
[1750020857691,0.57347334,105030.0,105020.0,0.18669768]
[1750020858585,0.55856178,105030.0,105020.0,0.18669768]
[1750020858794,0.55856178,105030.0,105020.0,0.02473768]
[1750020858999,0.54006178,105030.0,105020.0,0.02473768]
[1750020860255,1.19982093,105030.0,105020.0,0.02473768]
[1750020860470,1.12237171,105030.0,105020.0,0.02473768]
[1750020861181,0.57726178,105030.0,105020.0,0.02473768]
[1750020861387,1.12237171,105030.0,105020.0,0.02473768]
[1750020862216,1.13728337,105030.0,105020.0,0.02473768]
[1750020862828,1.12237171,105030.0,105020.0,0.02473768]
[1750020863267,1.45631561,105030.0,105020.0,0.002]
[1750020863919,1.64692161,105030.0,105020.0,0.002]
[1750020864593,1.67361919,105030.0,105020.0,0.002]
[1750020864804,1.68853354,105030.0,105020.0,0.002]
[1750020865008,0.49192529,105020.0,105010.0,4.74e-05]
[1750020865216,1.03703522,105020.0,105010.0,4.74e-05]
[1750020865427,1.37703522,105020.0,105010.0,4.74e-05]
[1750020865634,1.4037328,105020.0,105010.0,4.74e-05]
[1750020865848,1.37703522,105020.0,105010.0,4.74e-05]
[1750020867105,1.4037328,105020.0,105010.0,4.74e-05]
[1750020867338,0.21498673,105000.0,104990.0,0.04404]
[1750020867546,1.47062056,105000.0,104990.0,0.04418225]
[1750020868110,1.4855363,105000.0,104990.0,0.04418225]
[1750020868690,1.47062056,105000.0,104990.0,0.04418225]
[1750020868906,1.47162056,105000.0,104990.0,0.04618225]
[1750020872198,1.48653695,105000.0,104990.0,0.04618225]
[1750020874211,1.48653695,105000.0,104990.0,0.00214225]
[1750020877253,1.46863695,105000.0,104990.0,0.00214225]
[1750020877463,1.46863695,105000.0,104990.0,0.00885312]
[1750020877673,1.46863695,105000.0,104990.0,0.00214225]
[1750020877881,1.46863695,105000.0,104990.0,0.0088531]
[1750020878093,1.46863695,105000.0,104990.0,0.00885313]
[1750020878560,1.46863695,105000.0,104990.0,0.00885319]
[1750020878771,1.48653695,105000.0,104990.0,0.00885319]
[1750020878978,1.48653695,105000.0,104990.0,0.00885323]
[1750020879183,1.48653695,105000.0,104990.0,0.00885324]
[1750020879392,1.48653695,105000.0,104990.0,0.00214225]
[1750020879597,1.48653695,105000.0,104990.0,0.00885324]
[1750020879832,1.48653695,105000.0,104990.0,0.00885325]
[1750020880087,1.48653695,105000.0,104990.0,0.00885319]
[1750020880517,1.48653695,105000.0,104990.0,0.00214225]
[1750020880724,1.48653695,105000.0,104990.0,0.02125225]
[1750020880926,1.48653695,105000.0,104990.0,0.02796319]
[1750020881146,1.48653695,105000.0,104990.0,0.02125225]
[1750020882111,1.48653695,105000.0,104990.0,0.01925225]
[1750020882360,0.94042702,105000.0,104990.0,0.01925225]
[1750020882572,1.46763695,105000.0,104990.0,0.01925225]
[1750020883390,1.44903695,105000.0,104990.0,0.01925225]
[1750020887115,1.44903695,105000.0,104990.0,0.00014225]
[1750020888710,1.44903695,105000.0,104990.0,0.00685314]
[1750020889201,1.44903695,105000.0,104990.0,0.00685315]
[1750020889448,1.44903695,105000.0,104990.0,0.00014225]
[1750020890605,1.44903695,105000.0,104990.0,0.00685314]
[1750020890824,1.44903695,105000.0,104990.0,0.01925225]
[1750020891052,1.44903695,105000.0,104990.0,0.02596313]
[1750020891288,1.44903695,105000.0,104990.0,0.02596315]
[1750020891786,1.44903695,105000.0,104990.0,0.02596314]
[1750020892229,1.44903695,105000.0,104990.0,0.02596312]
[1750020892439,1.44903695,105000.0,104990.0,0.02596314]
[1750020892676,1.44903695,105000.0,104990.0,0.01925225]
[1750020892902,1.44903695,105000.0,104990.0,0.02596311]
[1750020893096,1.44903695,105000.0,104990.0,0.02596313]
[1750020893841,1.44903695,105000.0,104990.0,0.01925225]
[1750020894469,1.44903695,105000.0,104990.0,0.04213908]
[1750020895767,1.44903695,105000.0,104990.0,0.07863908]
[1750020897446,0.90392702,105000.0,104990.0,0.07863908]
[1750020897901,0.54901063,105000.0,104990.0,0.62374901]
[1750020898113,0.53948728,105000.0,104990.0,0.70490069]
[1750020898320,0.20546338,105000.0,104990.0,0.66675311]
[1750020898531,0.20546338,105000.0,104990.0,0.70490069]
[1750020898738,0.19999981,105000.0,104990.0,0.71161053]
[1750020898969,0.21904669,105000.0,104990.0,0.71161053]
[1750020899182,0.02856969,105000.0,104990.0,0.97634737]
[1750020899402,0.00952253,105010.0,105000.0,0.06995085]
[1750020899613,0.00952253,105010.0,105000.0,0.71135641]
[1750020899614,0.01904443,105010.0,105000.0,0.71135641]
[1750020899822,0.02856706,105010.0,105000.0,0.83585522]
[1750020900029,0.02856696,105010.0,105000.0,0.82914624]
[1750020900451,0.02856696,105010.0,105000.0,0.83585483]
[1750020900658,0.04761258,105010.0,105000.0,0.8358549]
[1750020900873,0.20950367,105010.0,105000.0,0.17277709]
[1750020901084,0.20950367,105010.0,105000.0,0.32172175]
[1750020901297,0.20950367,105010.0,105000.0,0.18842652]
[1750020901561,0.20950367,105010.0,105000.0,0.10931245]
[1750020901779,0.7546136,105010.0,105000.0,0.0947716]
[1750020902008,0.7546136,105010.0,105000.0,0.02988683]
[1750020902009,1.0946136,105010.0,105000.0,0.02988683]
[1750020902443,1.0946136,105010.0,105000.0,0.004]
[1750020902655,0.19999981,105000.0,104990.0,0.08044225]
[1750020902881,0.74510974,105000.0,104990.0,0.10330057]
[1750020903091,0.52398258,105000.0,104990.0,0.13648851]
[1750020903305,0.19999981,105000.0,104990.0,0.09248851]
[1750020903520,0.20952334,105000.0,104990.0,0.11784142]
[1750020903734,0.19045805,105010.0,105000.0,0.05134085]
[1750020903946,0.19045805,105010.0,105000.0,0.07419917]
[1750020904786,0.19045805,105010.0,105000.0,0.11819917]
[1750020905673,0.19045805,105010.0,105000.0,0.15663873]
[1750020905885,0.19045805,105010.0,105000.0,0.11819917]
[1750020908210,1.40953224,105020.0,105000.0,0.08139917]
[1750020908422,1.40953224,105020.0,105010.0,0.035]
[1750020909035,0.52442231,105020.0,105010.0,0.035]
[1750020909244,1.06953224,105020.0,105010.0,0.035]
[1750020909663,0.52442231,105020.0,105010.0,0.04435409]
[1750020910309,0.52442231,105020.0,105010.0,0.06717766]
[1750020910517,0.19043991,105020.0,105010.0,0.08171851]
[1750020910931,0.19043991,105020.0,105010.0,0.07236442]
[1750020911139,0.19243991,105020.0,105010.0,0.07236442]
[1750020911549,0.19043991,105020.0,105010.0,0.07236442]
[1750020911977,0.19243991,105020.0,105010.0,0.11628442]
[1750020918421,0.19243991,105020.0,105010.0,0.07236442]
[1750020918625,0.19243991,105020.0,105010.0,0.11628442]
[1750020918831,0.19243991,105020.0,105010.0,0.07236442]
[1750020919037,0.19243991,105020.0,105010.0,0.11628442]
[1750020927222,0.19243991,105020.0,105010.0,0.07236442]
[1750020927443,0.73754984,105020.0,105010.0,0.11628442]
[1750020928297,0.73754984,105020.0,105010.0,0.02282357]
[1750020928514,1.09537411,105020.0,105010.0,0.06674357]
[1750020928942,1.09537411,105020.0,105010.0,0.02282357]
[1750020929184,1.11397411,105020.0,105010.0,0.02282357]
[1750020930899,0.19998077,105010.0,105000.0,0.06182]
[1750020931113,0.7450907,105010.0,105000.0,0.10277884]
[1750020931784,0.19998077,105010.0,105000.0,0.10277884]
[1750020934338,0.19045805,105010.0,105000.0,0.10277884]
[1750020934554,0.19998077,105010.0,105000.0,0.10277884]
[1750020935186,0.19998077,105010.0,105000.0,0.05885884]
[1750020935389,0.19998077,105010.0,105000.0,0.10277884]
[1750020941015,0.19998077,105010.0,105000.0,0.12188884]
[1750020943593,0.19998077,105010.0,105000.0,0.08588884]
[1750020943842,0.7450907,105010.0,105000.0,0.04196884]
[1750020944067,1.1208907,105010.0,105000.0,0.04196884]
[1750020944303,1.1208907,105010.0,105000.0,0.01911]
[1750020944583,0.54546338,105000.0,104990.0,0.04398225]
[1750020944807,0.54546338,105000.0,104990.0,0.06684679]
[1750020944808,1.46039681,105000.0,104990.0,0.06684679]
[1750020945731,0.89738688,105000.0,104990.0,0.06684679]
[1750020945959,0.87948688,105000.0,104990.0,0.06684679]
[1750020946188,0.87948688,105000.0,104990.0,0.10394679]
[1750020947187,0.54901041,105000.0,104990.0,0.64905672]
[1750020947287,0.21904714,105000.0,104990.0,0.66359757]
[1750020947536,0.01904643,105000.0,104990.0,0.73496494]
[1750020947764,0.03809286,105000.0,104990.0,0.92522971]
[1750020947998,0.00952308,105000.0,104990.0,0.92522971]
[1750020948253,0.21902602,105010.0,105000.0,0.05244085]
[1750020948495,0.21902602,105010.0,105000.0,0.62041532]
[1750020948729,0.21902602,105010.0,105000.0,0.74514931]
[1750020948730,0.22854892,105010.0,105000.0,0.74514931]
[1750020949186,0.22854892,105010.0,105000.0,0.95066931]
[1750020949656,0.23054892,105010.0,105000.0,0.95066931]
[1750020949868,0.22102648,105010.0,105000.0,0.30941016]
[1750020953100,0.21150376,105010.0,105000.0,0.30941016]
[1750020954735,0.19245805,105010.0,105000.0,0.10389016]
[1750020954970,0.73756798,105010.0,105000.0,0.05144931]
[1750020955207,0.75546798,105010.0,105000.0,0.02286454]
[1750020955677,1.09546798,105010.0,105000.0,0.02286454]
[1750020955909,1.11496798,105010.0,105000.0,0.02286454]
[1750020956149,0.20546338,105000.0,104990.0,0.00014225]
[1750020956387,1.08459741,105000.0,104990.0,0.02300397]
[1750020956619,1.08459741,105000.0,104990.0,0.00014225]
[1750020957973,0.53948748,105000.0,104990.0,0.00014225]
[1750020960752,0.53948748,105000.0,104990.0,0.04129175]
[1750020960963,0.53948748,105000.0,104990.0,0.05919175]
[1750020961411,0.53948748,105000.0,104990.0,0.04089175]
[1750020961643,1.08459741,105000.0,104990.0,0.00014225]
[1750020963134,0.53948748,105000.0,104990.0,0.00014225]
[1750020963339,0.53948748,105000.0,104990.0,0.02298783]
[1750020963549,0.53948748,105000.0,104990.0,0.00014225]
[1750020964603,0.20546338,105000.0,104990.0,0.07442612]
[1750020964832,0.00952326,105000.0,104990.0,0.70635022]
[1750020965056,0.0380934,105000.0,104990.0,0.70635022]
[1750020965285,0.03809331,105000.0,104990.0,0.70635022]
[1750020965496,0.21904696,105000.0,104990.0,0.16124029]
[1750020965705,0.21904696,105000.0,104990.0,0.07442612]
[1750020967020,0.20952352,105000.0,104990.0,0.07442612]
[1750020968929,0.20952352,105000.0,104990.0,0.11826612]
[1750020970840,0.20952352,105000.0,104990.0,0.13737612]
[1750020971289,0.20704352,105000.0,104990.0,0.13737612]
[1750020976062,0.20704352,105000.0,104990.0,0.09353612]
[1750020976298,0.75761702,105000.0,104990.0,0.08585527]
[1750020976550,1.13621702,105000.0,104990.0,0.04209527]
[1750020976768,1.13621702,105000.0,104990.0,0.01925225]
[1750020977027,1.38621702,105000.0,104990.0,0.00014225]
[1750020977251,1.72025852,105000.0,104990.0,0.00014225]
[1750020977720,1.15624859,105000.0,104990.0,0.00014225]
[1750020977965,1.13654859,105000.0,104990.0,0.00014225]
[1750020978448,1.13654859,105000.0,104990.0,0.03814225]
[1750020980818,1.13654859,105000.0,104990.0,0.05725225]
[1750020982117,1.13654859,105000.0,104990.0,0.01925225]
[1750020982327,1.16520059,105000.0,104990.0,0.01925225]
[1750020984256,1.18350059,105000.0,104990.0,0.01925225]
[1750020984459,1.72861052,105000.0,104990.0,0.01925225]
[1750020984701,1.71031052,105000.0,104990.0,0.04212498]
[1750020989055,1.72921052,105000.0,104990.0,0.04212498]
[1750020989512,1.72921052,105000.0,104990.0,0.01925225]
[1750020989991,1.74771052,105000.0,104990.0,0.01925225]
[1750020992686,1.74771052,105000.0,104990.0,0.00014225]
[1750020996146,2.29282045,105000.0,104990.0,0.00014225]
[1750020997435,2.29582045,105000.0,104990.0,0.00014225]
[1750020997859,2.29282045,105000.0,104990.0,0.00014225]
[1750020998283,2.29582045,105000.0,104990.0,0.00014225]
[1750021000494,2.45726045,105000.0,104990.0,0.00014225]
[1750021001172,1.75071052,105000.0,104990.0,0.00014225]
[1750021001436,1.91215052,105000.0,104990.0,0.00014225]
[1750021002719,2.45726045,105000.0,104990.0,0.00014225]
[1750021003158,1.91215052,105000.0,104990.0,0.00014225]
[1750021003586,1.91211052,105000.0,104990.0,0.00014225]
[1750021004272,1.75071052,105000.0,104990.0,0.00014225]
[1750021004524,1.91211052,105000.0,104990.0,0.00014225]
[1750021004946,1.92702901,105000.0,104990.0,0.00014225]
[1750021005345,2.02317823,105000.0,104990.0,0.00014225]
[1750021005503,1.92702901,105000.0,104990.0,0.00014225]
[1750021009553,2.47213894,105000.0,104990.0,0.00014225]
[1750021009788,1.38191908,105000.0,104990.0,0.00014225]
[1750021010024,2.47213894,105000.0,104990.0,0.00014225]
[1750021010699,1.92702901,105000.0,104990.0,0.00014225]
[1750021011136,1.76562901,105000.0,104990.0,0.00014225]
[1750021011366,1.92702901,105000.0,104990.0,0.00014225]
[1750021011848,1.90852901,105000.0,104990.0,0.00014225]
[1750021012051,2.45363894,105000.0,104990.0,0.00014225]
[1750021012906,1.88962901,105000.0,104990.0,0.00014225]
[1750021013068,1.88962901,105000.0,104990.0,0.01924225]
[1750021013268,1.88962901,105000.0,104990.0,0.00014225]
[1750021013475,1.88962901,105000.0,104990.0,0.01924225]
[1750021015059,1.88962901,105000.0,104990.0,0.03764225]
[1750021015280,1.88958901,105000.0,104990.0,0.03764225]
[1750021015503,1.29958901,105000.0,104990.0,0.03764225]
[1750021015915,1.63958901,105000.0,104990.0,0.03764225]
[1750021016127,1.62467052,105000.0,104990.0,0.03764225]
[1750021018777,1.46331052,105000.0,104990.0,0.03764225]
[1750021019003,1.62467052,105000.0,104990.0,0.03764225]
[1750021019224,1.63958779,105000.0,104990.0,0.03764225]
[1750021020230,1.47822779,105000.0,104990.0,0.03764225]
[1750021020480,1.62467052,105000.0,104990.0,0.03764225]
[1750021020966,0.91820059,105000.0,104990.0,0.03764225]
[1750021024971,0.93311755,105000.0,104990.0,0.03764225]
[1750021026953,0.90446555,105000.0,104990.0,0.03764225]
[1750021027228,0.90446555,105000.0,104990.0,0.06049838]
[1750021027683,0.90446555,105000.0,104990.0,0.03764225]
[1750021029825,0.89900198,105000.0,104990.0,0.03764225]
[1750021030501,0.89900198,105000.0,104990.0,0.06049226]
[1750021030717,0.89900198,105000.0,104990.0,0.06654149]
[1750021031369,0.89900198,105000.0,104990.0,0.06049226]
[1750021031806,0.89900198,105000.0,104990.0,0.07503311]
[1750021032888,0.89900198,105000.0,104990.0,0.11871311]
[1750021033766,0.89900198,105000.0,104990.0,0.07503311]
[1750021033979,0.89900198,105000.0,104990.0,0.11871311]
[1750021035528,0.89900198,105000.0,104990.0,0.11859311]
[1750021035968,1.44411191,105000.0,104990.0,0.11859311]
[1750021037577,1.44171191,105000.0,104990.0,0.11859311]
[1750021037793,1.44171191,105000.0,104990.0,0.0521831]
[1750021038017,1.44717548,105000.0,104990.0,0.03764225]
[1750021038231,1.43225852,105000.0,104990.0,0.01924225]
[1750021038453,1.43225852,105000.0,104990.0,0.03724225]
[1750021040026,1.52840774,105000.0,104990.0,0.00014225]
[1750021040220,2.00389103,105000.0,104990.0,0.00014225]
[1750021040440,1.45035852,105000.0,104990.0,0.00014225]
[1750021041345,2.42466845,105000.0,104990.0,0.00014225]